bitfinex-derivatives/quotes_ETHF0:USTF0_20251116
["timestamp","ask_amount","ask_price","bid_price","bid_amount"]
[1763330821080,3.84909,3059.5,3059.4,0.04502242]
[1763330822182,4.60916582,3059.5,3059.4,0.04502242]
[1763330822979,4.60916582,3059.5,3059.1,0.00823432]
[1763330822980,3.00384,3059.2,3059.1,0.00823432]
[1763330823184,2.4739,3058.0,3057.8,3.2078]
[1763330823384,2.61136859,3058.0,3057.8,3.2078]
[1763330823701,2.08120859,3058.0,3057.8,3.2078]
[1763330823985,0.5301,3058.3,3057.8,3.2078]
[1763330824190,0.53503364,3058.2,3058.0,0.04264284]
[1763330825390,3.01254709,3058.2,3058.1,0.04264284]
[1763330827282,0.00851709,3058.2,3058.1,0.04264284]
[1763330827501,0.00851709,3058.2,3058.1,2.45514284]
[1763330829200,0.52996,3059.1,3058.1,8.45514284]
[1763330829400,0.52996,3059.1,3058.5,1.5021]
[1763330829602,0.52994,3059.2,3058.5,1.5021]
[1763330829994,0.52998,3059.0,3058.5,1.5021]
[1763330830299,3.73778,3059.0,3058.7,0.04264284]
[1763330830691,3.2078,3059.0,3058.7,0.04264284]
[1763330830887,3.73778,3059.0,3058.7,0.04264284]
[1763330831292,3.73778,3059.0,3058.5,1.5021]
[1763330831494,3.2078,3059.0,3058.8,0.04264284]
[1763330831699,3.00389,3058.9,3058.8,0.04264284]
[1763330832001,2.4739,3058.5,3058.4,3.2078]
[1763330833105,4.50066,3058.5,3058.4,3.2078]
[1763330833402,4.10799749,3058.5,3058.4,3.2078]
[1763330833594,4.10799749,3058.5,3058.0,3.2078]
[1763330833791,3.00403,3058.1,3058.0,3.2078]
[1763330834000,3.00407,3057.9,3057.8,0.00370633]
[1763330834201,0.87033332,3058.3,3057.8,2.41620633]
[1763330834407,1.4967,3058.5,3058.1,2.4125]
[1763330834606,2.02676,3058.5,3058.1,2.4125]
[1763330835103,1.4967,3058.5,3058.1,2.4125]
[1763330835310,2.4739,3057.9,3057.8,0.00370633]
[1763330835913,3.00407,3057.9,3057.8,0.00370633]
[1763330836601,3.00407,3057.9,3057.8,0.04872875]
[1763330836802,2.4739,3057.9,3057.8,0.04872875]
[1763330836997,3.00407,3057.9,3057.8,0.04872875]
[1763330837600,2.4739,3057.9,3057.8,0.04872875]
[1763330839409,3.2078,3058.1,3057.8,0.04872875]
[1763330839610,3.2078,3058.1,3057.9,0.04502242]
[1763330839905,3.7497,3058.0,3057.9,0.04502242]
[1763330840307,4.27985,3058.0,3057.9,0.04502242]
[1763330841504,3.7497,3058.0,3057.9,0.04502242]
[1763330842103,4.27985,3058.0,3057.9,0.04502242]
[1763330843916,3.2078,3058.1,3057.9,2.44782242]
[1763330844110,3.2078,3058.8,3058.5,2.4028]
[1763330844318,3.7387,3058.5,3058.4,3.2078]
[1763330844713,2.4143,3058.5,3058.4,3.25282242]
[1763330845217,0.53,3058.9,3058.4,5.65562242]
[1763330845819,0.53,3058.9,3058.6,0.04502242]
[1763330846018,2.94433,3058.7,3058.6,0.04502242]
[1763330846522,2.4143,3058.7,3058.6,0.04502242]
[1763330846716,3.21336026,3059.2,3058.6,2.44782242]
[1763330847020,2.4143,3059.0,3058.9,0.07194589]
[1763330848718,2.94428,3059.0,3058.9,0.07194589]
[1763330848921,2.4143,3059.0,3058.9,0.07194589]
[1763330849123,2.94428,3059.0,3058.9,0.07194589]
[1763330849425,4.25778,3059.0,3058.9,0.07194589]
[1763330850525,4.38016,3058.5,3058.4,3.2078]
[1763330853826,3.2078,3058.8,3058.7,2.4028]
[1763330854031,0.52997,3059.1,3058.7,2.4028]
[1763330854228,0.52999,3059.0,3058.7,2.4028]
[1763330854427,2.4143,3058.8,3058.7,2.4028]
[1763330854634,2.4143,3058.8,3058.5,1.498]
[1763330855131,2.4143,3058.8,3058.4,3.2078]
[1763330855636,0.00556026,3059.2,3058.4,3.2078]
[1763330855926,2.4143,3058.5,3058.4,3.2078]
[1763330856134,2.55170912,3058.5,3058.4,3.2078]
[1763330856524,2.02164912,3058.5,3058.4,3.2078]
[1763330857133,2.55170912,3058.5,3058.4,3.2078]
[1763330857535,3.66670912,3058.5,3058.4,3.2078]
[1763330857936,2.94445,3058.1,3058.0,3.2078]
[1763330858628,3.7065565,3058.1,3058.0,3.2078]
[1763330858824,3.70656908,3058.1,3058.0,3.2078]
[1763330863242,2.94447,3057.9,3057.8,0.00370633]
[1763330866541,3.708122,3057.9,3057.8,0.00370633]
[1763330866742,2.9445,3057.7,3057.6,0.00490364]
[1763330866942,3.708152,3057.7,3057.6,0.00490364]
[1763330867931,3.708152,3057.7,3057.6,0.00884424]
[1763330869244,4.58131953,3057.7,3057.6,4.424e-05]
[1763330869634,3.708152,3057.7,3057.6,4.424e-05]
[1763330870046,4.86859643,3057.7,3057.6,4.424e-05]
[1763330870234,3.708152,3057.7,3057.6,4.424e-05]
[1763330872246,4.58008882,3057.7,3057.6,4.424e-05]
[1763330872641,2.9445,3057.7,3057.6,4.424e-05]
[1763330873247,3.70573479,3057.7,3057.6,4.424e-05]
[1763330873545,4.57754853,3057.7,3057.6,4.424e-05]
[1763330875742,2.2908,3056.7,3056.6,3.2078]
[1763330876347,2.2908,3056.7,3056.6,5.7233]
[1763330876750,2.82374422,3056.7,3056.6,3.21195176]
[1763330876953,2.82374422,3056.7,3056.6,5.72745176]
[1763330877145,0.53294422,3056.7,3056.6,5.72745176]
[1763330877843,2.82374422,3056.7,3056.6,5.72745176]
[1763330878444,0.53294422,3056.7,3056.6,5.72745176]
[1763330879553,2.82374422,3056.7,3056.6,5.72745176]
[1763330879751,2.82374422,3056.7,3056.6,3.21195176]
[1763330879955,2.82374422,3056.7,3056.6,0.00415176]
[1763330880251,2.82133,3055.8,3055.7,2.5155]
[1763330880451,3.2078,3056.0,3055.9,2.5155]
[1763330880652,2.82135,3055.7,3055.6,0.29707511]
[1763330880848,0.53058,3055.6,3055.5,3.9776]
[1763330881048,2.82131,3055.9,3055.8,2.5155]
[1763330881253,2.82137,3055.6,3055.5,0.00319537]
[1763330881450,0.53055,3055.8,3055.5,3.98079537]
[1763330881650,3.2078,3056.6,3056.0,1.4621]
[1763330882048,3.7382,3056.6,3056.0,1.4621]
[1763330882554,0.53042,3056.5,3056.0,1.4621]
[1763330882752,0.53044,3056.4,3056.0,1.4621]
[1763330882953,2.82133,3055.8,3055.7,3.2078]
[1763330883257,0.53053,3055.8,3055.7,5.7233]
[1763330883453,2.82133,3055.8,3055.7,2.5155]
[1763330883753,3.73831,3056.0,3055.7,2.5155]
[1763330883962,0.53052,3055.9,3055.8,2.5155]
[1763330884457,2.82142,3055.3,3055.2,0.00490364]
[1763330884651,0.53074,3054.6,3054.5,7.1854]
[1763330884955,3.73844,3055.2,3055.1,2.5155]
[1763330885149,0.53074,3054.6,3054.5,4.6699]
[1763330885350,3.2078,3055.2,3054.5,3.9776]
[1763330885547,3.2078,3055.2,3054.7,2.5155]
[1763330885747,3.2078,3055.2,3055.1,2.5155]
[1763330886155,2.2908,3055.1,3054.6,0.00490364]
[1763330886358,3.2078,3055.2,3055.1,2.5155]
[1763330886657,0.53072,3054.8,3054.6,0.00490364]
[1763330886856,0.53071,3054.8,3054.6,0.00490364]
[1763330887248,0.53072,3054.7,3054.6,0.00490364]
[1763330888056,2.82152,3054.7,3054.6,0.00490364]
[1763330888255,0.53064,3055.2,3055.1,2.5155]
[1763330888558,2.2908,3055.0,3054.6,0.00490364]
[1763330888756,3.2078,3055.2,3055.1,2.5155]
[1763330889155,0.00490364,3055.3,3055.2,2.5155]
[1763330890358,0.53552364,3055.3,3055.2,2.5155]
[1763330890861,0.53065,3055.1,3055.0,3.2078]
[1763330891459,3.21270364,3055.3,3055.2,2.5155]
[1763330891660,0.00490364,3055.3,3055.2,2.5155]
[1763330894455,16.252,3056.2,3056.1,2.5155]
[1763330894652,3.2078,3056.3,3055.5,1.4621]
[1763330894653,3.2078,3056.3,3056.2,2.5155]
[1763330895553,0.00490364,3056.6,3056.2,2.5155]
[1763330895759,0.00490364,3056.6,3056.5,3.9776]
[1763330897958,2.2841,3056.3,3056.2,0.00490364]
[1763330898260,6.25274418,3056.3,3056.2,0.00490364]
[1763330898953,6.25274418,3056.3,3055.3,3.2078]
[1763330898954,3.96864418,3056.3,3055.3,3.2078]
[1763330899262,3.2078,3055.8,3055.0,1.4621]
[1763330899460,0.53071,3054.8,3054.7,5.6169]
[1763330899858,0.53071,3054.8,3054.7,2.4091]
[1763330900060,0.00490364,3055.1,3054.9,2.4091]
[1763330900061,0.53067,3055.0,3054.9,2.4091]
[1763330900259,0.00490364,3055.1,3054.9,2.4091]
[1763330900452,0.53555364,3055.1,3055.0,2.4091]
[1763330901049,0.53555364,3055.1,3055.0,3.8894]
[1763330901763,3.2078,3055.7,3055.0,3.8894]
[1763330902262,0.53065,3055.1,3055.0,3.8894]
[1763330903164,0.00490364,3055.4,3055.0,3.8894]
[1763330903459,2.4275,3055.1,3054.7,3.2078]
[1763330903762,0.53076,3054.6,3054.5,3.8894]
[1763330904060,1.2922728,3054.6,3054.5,3.8894]
[1763330904656,1.2922728,3054.6,3054.5,3.89329318]
[1763330904858,3.7197728,3054.6,3054.5,0.00389318]
[1763330905053,2.95829,3054.3,3054.2,0.00490364]
[1763330905368,6.9276028,3054.3,3054.2,0.00490364]
[1763330905563,6.3968128,3054.3,3054.2,0.00490364]
[1763330905758,6.9276028,3054.3,3054.2,0.00490364]
[1763330906066,6.93080541,3054.3,3054.2,0.00793344]
[1763330907466,3.97251541,3054.3,3054.2,0.00793344]
[1763330907657,3.97251541,3054.3,3054.2,2.41703344]
[1763330907961,3.21100261,3054.3,3054.2,2.41703344]
[1763330908467,6.39917348,3054.3,3054.2,0.00793344]
[1763330908663,3.97167348,3054.3,3054.2,2.41703344]
[1763330908864,6.39917348,3054.3,3054.2,0.00793344]
[1763330909659,3.97167348,3054.3,3054.2,2.41703344]
[1763330909861,3.21100261,3054.3,3054.2,2.41703344]
[1763330911560,6.16929261,3054.3,3054.2,0.00793344]
[1763330911763,4.50510437,3054.3,3054.2,2.41703344]
[1763330912771,3.74179261,3054.3,3054.2,2.41703344]
[1763330913272,3.21100261,3054.3,3054.2,2.41703344]
[1763330915769,3.2078,3054.9,3054.8,2.4091]
[1763330916767,3.74113182,3054.9,3054.8,2.4091]
[1763330917169,0.53071,3054.8,3054.2,3.21573344]
[1763330917365,3.2078,3054.5,3054.2,0.00793344]
[1763330917571,0.53074,3054.6,3054.2,0.00793344]
[1763330917971,3.21044182,3054.9,3054.5,2.4091]
[1763330918271,3.21044182,3054.9,3054.8,2.4091]
[1763330918466,3.74113182,3054.9,3054.8,2.4091]
[1763330918662,6.16863182,3054.9,3054.2,3.21573344]
[1763330918867,0.53071,3054.8,3054.2,3.21573344]
[1763330919269,4.7078,3054.5,3054.2,0.00793344]
[1763330919576,0.53078,3054.4,3054.2,0.00793344]
[1763330919777,0.53079,3054.3,3054.2,0.00793344]
[1763330920375,2.95829,3054.3,3054.2,0.00793344]
[1763330921075,2.4275,3054.3,3054.2,0.00793344]
[1763330921574,2.95829,3054.3,3054.2,0.00793344]
[1763330922473,2.95829,3054.3,3053.7,0.0327477]
[1763330922474,1.5,3054.0,3053.7,3.2405477]
[1763330922773,3.73867,3053.9,3053.7,0.0327477]
[1763330923275,0.53088,3053.8,3053.7,0.0327477]
[1763330923579,3.72300286,3053.8,3053.7,0.03640559]
[1763330924175,4.45843,3053.5,3053.4,0.00491183]
[1763330924676,7.66623,3053.5,3053.4,0.00491183]
[1763330925267,1.5,3053.0,3051.5,4.6881]
[1763330925477,0.53118,3052.2,3051.7,0.09371984]
[1763330925677,0.53422861,3052.2,3051.7,0.09371984]
[1763330926381,3.2078,3052.1,3051.7,0.09371984]
[1763330926572,0.53119,3052.0,3051.8,2.4091]
[1763330926773,3.2078,3052.1,3051.7,0.09371984]
[1763330927272,2.4275,3051.8,3051.7,0.09371984]
[1763330927472,0.00306861,3052.2,3051.7,0.09371984]
[1763330927973,3.73898,3052.1,3051.7,0.09371984]
[1763330928167,3.2078,3052.1,3051.7,0.09371984]
[1763330929076,3.73898,3052.1,3051.7,0.09371984]
[1763330929382,3.2078,3052.1,3052.0,2.1716]
[1763330929774,3.2078,3052.1,3051.7,0.09371984]
[1763330929981,1.4845,3052.0,3051.7,0.09371984]
[1763330930381,3.2078,3052.1,3051.7,0.09371984]
[1763330930578,3.73898,3052.1,3051.7,0.09371984]
[1763330930771,3.2078,3052.1,3051.7,0.09371984]
[1763330931283,1.4845,3052.0,3051.7,0.09371984]
[1763330931481,3.2078,3052.1,3051.7,0.09371984]
[1763330931872,1.4845,3052.0,3051.7,0.09371984]
[1763330932269,3.2078,3052.1,3051.9,2.1716]
[1763330932468,1.4845,3052.0,3051.7,0.09371984]
[1763330932673,3.2078,3052.1,3051.9,2.1716]
[1763330932868,1.4845,3052.0,3051.7,0.09371984]
[1763330933269,1.4845,3052.0,3051.7,2.26531984]
[1763330933480,5.3806,3052.1,3051.7,0.09371984]
[1763330933885,0.00306861,3052.2,3052.1,2.1716]
[1763330936485,2.17586861,3052.2,3051.7,0.09371984]
[1763330937481,2.70703861,3052.2,3051.7,0.09371984]
[1763330937981,0.70266997,3052.0,3051.7,0.09371984]
[1763330938288,3.2078,3051.8,3051.7,0.09371984]
[1763330938588,3.2078,3051.8,3051.7,2.26531984]
[1763330938991,3.91046997,3051.8,3051.7,2.26531984]
[1763330939380,6.08326997,3051.8,3051.7,0.09371984]
[1763330939582,6.61449997,3051.8,3051.7,0.09371984]
[1763330939882,6.08326997,3051.8,3051.7,0.09371984]
[1763330940789,6.08326997,3051.8,3050.3,9.164]
[1763330940790,0.5378,3049.5,3048.4,2.33463352]
[1763330940992,0.5378,3049.5,3047.5,1.4132]
[1763330940993,5.64160861,3048.5,3048.0,1.4132]
[1763330941288,3.2078,3048.1,3047.5,1.4132]
[1763330941589,3.2078,3048.1,3048.0,1.4132]
[1763330941590,5.64160861,3048.1,3048.0,1.4132]
[1763330941789,5.64395657,3048.1,3048.0,1.4132]
[1763330941991,3.21014796,3048.1,3048.0,3.5848]
[1763330942188,3.2078,3048.3,3048.2,2.1716]
[1763330942387,2.4460865,3049.0,3048.0,4.621]
[1763330943093,3.30257018,3048.9,3048.0,4.621]
[1763330943286,0.53182,3048.5,3048.0,4.621]
[1763330943487,2.1728,3047.7,3047.6,3.2078]
[1763330943702,3.2078,3047.8,3047.5,0.0036482]
[1763330944391,2.1728,3047.6,3047.5,0.0036482]
[1763330944596,3.2078,3047.8,3047.5,0.0036482]
[1763330945393,2.1728,3047.6,3047.5,0.0036482]
[1763330946089,3.2078,3047.8,3047.5,0.0036482]
[1763330946696,3.2078,3048.2,3048.1,2.1716]
[1763330946894,3.2078,3048.2,3047.5,0.0036482]
[1763330947484,3.73966,3048.2,3047.5,0.0036482]
[1763330948495,3.2078,3048.2,3047.5,0.0036482]
[1763330948689,3.2078,3048.2,3048.1,2.1716]
[1763330948891,1.964842,3048.2,3048.1,2.1716]
[1763330950699,3.2078,3048.6,3048.1,2.1716]
[1763330950902,3.2078,3048.6,3048.1,5.3794]
[1763330952498,3.2078,3048.6,3048.1,3.2078]
[1763330952691,2.1728,3047.6,3047.5,0.0036482]
[1763330952894,0.86564342,3048.3,3048.2,2.1716]
[1763330953193,0.00492045,3048.6,3048.5,2.1716]
[1763330953988,2.045e-05,3048.6,3048.5,8.1745248]
[1763330954194,0.86564342,3049.7,3048.6,7.4132]
[1763330954403,3.2078,3050.5,3049.4,3.2078]
[1763330954591,3.2078,3050.5,3049.8,1.4132]
[1763330954795,3.2078,3050.5,3050.0,3.2078]
[1763330955101,3.2078,3051.0,3050.0,3.2078]
[1763330955301,0.00492045,3050.6,3050.4,3.2078]
[1763330957508,1.51702045,3050.6,3050.4,3.2078]
[1763330957802,0.8432914,3050.5,3050.0,3.2078]
[1763330958002,0.00492045,3050.6,3050.0,3.2078]
[1763330958203,0.00492045,3050.6,3050.4,3.2078]
[1763330961002,0.00492045,3050.6,3050.5,2.3283]
[1763330961203,0.00390231,3051.0,3050.4,3.2078]
[1763330961204,0.00390231,3051.0,3050.9,2.4736]
[1763330961403,4.93184342,3052.2,3050.9,5.68372175]
[1763330961604,0.84408625,3052.1,3051.6,3.2078]
[1763330962308,0.00384894,3052.1,3051.6,3.2078]
[1763330963304,0.00492045,3052.2,3051.6,3.2078]
[1763330963706,0.00492045,3052.2,3052.0,1.3909]
[1763330964206,0.00828148,3052.2,3052.0,1.3909]
[1763330964616,0.00828148,3052.2,3052.1,3.2078]
[1763330967418,2.37774342,3053.4,3052.1,3.2078]
[1763330967606,0.84071585,3053.3,3052.9,3.2078]
[1763330968309,2.00927,3052.7,3051.9,3.2078]
[1763330968514,5.21708,3052.7,3051.9,3.2078]
[1763330968909,4.686,3052.7,3051.9,3.2078]
[1763330969311,1.4782,3052.0,3051.9,3.2078]
[1763330969616,0.53114,3052.3,3051.9,3.2078]
[1763330969820,0.53117,3052.2,3051.9,3.2078]
[1763330970414,1.4782,3052.0,3051.9,3.2078]
[1763330970712,3.2078,3052.7,3052.0,1.3909]
[1763330970916,3.2078,3053.1,3052.3,3.2078]
[1763330971108,0.84202267,3053.0,3052.3,3.2078]
[1763330971309,3.2078,3052.6,3051.9,3.2078]
[1763330971510,1.4782,3052.0,3051.9,3.2078]
[1763330972613,0.53126,3051.6,3051.5,0.00492045]
[1763330972917,0.53126,3051.6,3050.9,3.21012175]
[1763330972918,0.53127,3051.6,3050.9,3.21012175]
[1763330973117,1.3728114,3051.6,3050.9,3.21012175]
[1763330973413,0.53129,3051.5,3050.9,3.21012175]
[1763330973614,3.2078,3051.7,3050.9,3.21012175]
[1763330973815,0.84190343,3051.6,3051.0,0.00492045]
[1763330975023,3.2078,3051.7,3051.0,0.00492045]
[1763330975220,3.73905,3051.7,3051.0,0.00492045]
[1763330975525,0.84328887,3051.6,3051.0,0.00492045]
[1763330975717,0.00492045,3051.9,3051.3,4.5987]
[1763330978716,2.5241,3051.4,3051.3,3.2078]
[1763330978921,2.5241,3051.1,3051.0,0.00492045]
[1763330979226,0.00353963,3051.1,3051.0,3.86942045]
[1763330979619,0.53488963,3051.1,3051.0,0.00492045]
[1763330979929,3.90616313,3051.1,3051.0,0.00492045]
[1763330980132,4.0023,3051.0,3050.2,3.2078]
[1763330980426,4.92061692,3050.9,3050.2,3.2078]
[1763330980618,0.8471735,3050.8,3050.2,3.2078]
[1763330980931,0.5316,3049.7,3049.4,3.2078]
[1763330981234,0.84731811,3049.6,3049.4,3.21180591]
[1763330981424,0.53158,3049.8,3049.4,3.21180591]
[1763330981425,1.37894811,3049.5,3049.4,3.21180591]
[1763330981633,0.53177,3048.7,3048.5,3.2078]
[1763330981821,3.2078,3048.6,3047.9,3.2078]
[1763330982016,4.07706803,3049.0,3047.9,3.2078]
[1763330982220,0.5318,3048.5,3047.9,3.2078]
[1763330982427,3.73959,3048.6,3047.9,3.2078]
[1763330982627,3.74371117,3048.6,3048.0,0.00347392]
[1763330982834,0.86926803,3048.4,3048.0,0.00347392]
[1763330983025,1.71697859,3048.4,3048.0,0.00347392]
[1763330983932,3.73967,3048.1,3048.0,0.00347392]
[1763330984133,4.05551056,3048.1,3048.0,0.00347392]
[1763330984527,4.05551056,3048.1,3045.9,7.056]
[1763330984528,4.05551056,3048.1,3047.0,3.2078]
[1763330984734,1.37961056,3048.0,3047.1,1.3909]
[1763330984928,0.84771056,3047.9,3047.1,1.3909]
[1763330985431,0.53191,3047.9,3047.1,1.3909]
[1763330985833,0.53191,3047.9,3047.1,1.39491932]
[1763330986227,0.53193,3047.8,3047.1,1.39491932]
[1763330986632,3.2078,3047.7,3047.1,1.39491932]
[1763330986834,3.73975,3047.7,3047.1,1.39491932]
[1763330987534,0.53199,3047.5,3047.1,0.00401932]
[1763330987725,0.53196,3047.6,3047.1,0.00401932]
[1763330988634,3.2078,3047.7,3047.1,1.44431932]
[1763330989034,3.73975,3047.7,3047.1,1.44431932]
[1763330989434,3.2078,3047.7,3047.1,1.44431932]
[1763330989635,0.53197,3047.6,3047.1,1.44431932]
[1763330989935,0.53198,3047.5,3047.1,0.00401932]
[1763330990938,2.1237,3047.2,3047.1,0.00401932]
[1763330991131,0.532,3047.4,3047.1,0.00401932]
[1763330991839,3.2078,3047.3,3047.1,0.00401932]
[1763330992435,2.1237,3047.2,3047.1,0.00401932]
[1763330993634,3.2078,3047.7,3047.1,0.00401932]
[1763330994037,3.2078,3047.7,3047.1,3.21181932]
[1763330994235,0.53198,3047.5,3047.1,3.21181932]
[1763330994632,0.53202,3047.3,3047.1,3.21181932]
[1763330994940,0.53199,3047.5,3047.1,3.21181932]
[1763330995736,2.1237,3047.2,3047.1,0.00401932]
[1763330996848,3.2078,3047.7,3047.1,0.00401932]
[1763330997136,2.1237,3047.2,3047.1,0.00401932]
[1763330998045,0.532,3047.4,3047.1,0.00401932]
[1763330998247,3.2078,3047.7,3047.1,0.00401932]
[1763330998839,0.532,3047.4,3047.1,0.00401932]
[1763330999041,3.2078,3047.7,3047.1,0.00401932]
[1763331000044,0.53201,3047.4,3047.1,0.00401932]
[1763331000744,2.1237,3047.2,3047.1,0.00401932]
[1763331001638,2.65573,3047.2,3047.1,0.00401932]
[1763331002438,2.6558,3046.8,3046.7,2.67959209]
[1763331002638,2.65587,3046.4,3045.9,3.2078]
[1763331003145,2.65606,3045.3,3044.4,1.4403]
[1763331003349,3.2078,3046.1,3045.0,4.6481]
[1763331003548,3.2078,3046.0,3045.0,4.65157757]
[1763331003752,0.00295092,3046.1,3045.4,3.2078]
[1763331003947,3.2078,3046.0,3045.4,3.2078]
[1763331004146,3.2078,3046.0,3045.0,4.65157757]
[1763331004643,3.2078,3046.0,3045.6,1.4403]
[1763331004850,0.00295092,3046.1,3045.9,2.2726]
[1763331005040,3.21272045,3046.5,3046.2,1.4403]
[1763331005236,0.00492045,3046.5,3046.2,1.4403]
[1763331005841,0.00492045,3046.5,3045.6,1.4403]
[1763331006043,3.2078,3046.2,3045.6,1.4403]
[1763331006244,3.2078,3046.2,3045.5,0.6481]
[1763331006847,3.2078,3046.2,3045.4,3.2078]
[1763331007247,3.2078,3046.2,3045.0,3.09726957]
[1763331007443,3.2078,3045.8,3045.7,1.4403]
[1763331007643,3.2078,3045.8,3045.0,0.6481]
[1763331007839,3.2078,3045.1,3045.0,0.00313277]
[1763331008349,3.2078,3045.1,3043.9,11.82]
[1763331008350,1.95783,3045.0,3043.4,3.2078]
[1763331008554,3.2078,3043.8,3043.4,3.2078]
[1763331008953,3.2078,3043.8,3043.3,16.379]
[1763331009551,3.21104958,3043.8,3043.7,0.03701994]
[1763331010450,3.2078,3044.2,3043.7,6.03701994]
[1763331010643,3.2078,3044.2,3043.7,0.03701994]
[1763331011559,3.21113139,3044.2,3043.7,0.03701994]
[1763331012054,3.2078,3043.8,3043.7,0.03701994]
[1763331012647,0.00333139,3044.2,3043.7,0.03701994]
[1763331012848,0.82300182,3044.2,3043.7,0.03701994]
[1763331013256,0.00492045,3044.7,3044.1,2.44916957]
[1763331013454,3.2078,3045.5,3044.6,5.65696957]
[1763331014348,0.00492045,3045.4,3045.0,3.2078]
[1763331015150,0.00352561,3045.5,3045.0,5.65696957]
[1763331015658,0.00352561,3045.5,3045.0,3.2078]
[1763331016960,0.00352561,3045.5,3045.0,5.65696957]
[1763331018057,0.00352561,3045.5,3045.0,3.2078]
[1763331018252,3.2078,3045.2,3044.4,3.2078]
[1763331018563,3.2078,3044.8,3044.1,0.00492045]
[1763331018761,0.80494766,3044.7,3044.1,0.00492045]
[1763331019464,3.2078,3044.4,3044.1,0.00492045]
[1763331020056,4.6808,3045.0,3044.2,2.44916957]
[1763331020256,4.6808,3045.0,3044.4,3.2078]
[1763331022765,3.21132561,3045.5,3044.8,3.2078]
[1763331022956,0.80467354,3045.4,3044.8,3.2078]
[1763331023357,2.81702302,3045.5,3044.8,3.2078]
[1763331023557,0.00492045,3045.6,3045.4,0.0058]
[1763331024359,0.00807463,3045.6,3045.4,0.0058]
[1763331024757,0.00807463,3045.6,3045.5,0.0058]
[1763331026564,0.00807463,3045.6,3045.3,3.2078]
[1763331026764,5.6905,3045.4,3044.6,3.2078]
[1763331027067,0.80722525,3045.3,3044.6,3.2078]
[1763331027569,3.2078,3044.8,3044.2,3.2078]
[1763331031167,1.473,3045.0,3044.2,3.2078]
[1763331031367,1.473,3045.0,3044.0,16.36]
[1763331031368,1.473,3045.0,3044.6,3.2078]
[1763331031560,3.2078,3045.2,3045.1,0.0058]
[1763331031767,3.2078,3045.4,3045.1,0.0058]
[1763331031970,3.2078,3045.4,3044.7,2.44916957]
[1763331032470,4.6808,3045.0,3044.1,3.21272045]
[1763331033572,4.28641464,3045.0,3044.1,3.21272045]
[1763331033775,4.28641464,3045.0,3044.1,0.00492045]
[1763331034169,4.28641464,3045.0,3044.2,3.2078]
[1763331038580,4.28641464,3045.0,3044.1,0.00492045]
[1763331040376,1.473,3044.4,3044.1,0.00492045]
[1763331042872,3.2078,3044.6,3044.3,0.0058]
[1763331043075,1.473,3044.4,3044.1,0.00492045]
[1763331043277,1.473,3044.4,3044.1,16.32792045]
[1763331043472,1.07860357,3044.4,3044.1,16.32792045]
[1763331044082,1.07860357,3044.4,3044.3,0.4002]
[1763331045482,4.6808,3045.0,3044.3,0.4002]
[1763331046392,4.6808,3045.0,3044.5,2.44916957]
[1763331046577,1.473,3045.0,3044.5,2.44916957]
[1763331047380,1.473,3044.5,3044.2,2.34053974]
[1763331047684,1.473,3044.5,3044.2,19.5308]
[1763331048279,4.6808,3045.0,3044.4,0.017]
[1763331048676,4.6808,3045.0,3044.5,2.44916957]
[1763331048970,4.6808,3045.0,3044.6,16.323]
[1763331049574,4.6808,3045.0,3044.7,16.323]
[1763331049978,2.2853,3044.8,3044.4,2.34053974]
[1763331050177,4.6808,3045.0,3044.5,16.323]
[1763331050577,1.473,3045.0,3044.9,0.017]
[1763331050776,3.2078,3045.4,3044.9,16.339]
[1763331050978,3.2078,3045.4,3045.0,16.322]
[1763331052683,3.2078,3045.5,3045.0,16.322]
[1763331053080,3.2078,3045.5,3045.4,0.017]
[1763331053282,1.48107463,3045.6,3045.5,0.017]
[1763331053483,3.2078,3045.9,3045.5,0.017]
[1763331053692,3.2078,3045.9,3045.6,16.322]
[1763331053986,3.2078,3045.9,3045.8,0.4032]
[1763331054589,3.21046375,3045.9,3045.8,0.4032]
[1763331054890,1.4998,3045.5,3045.2,2.34053974]
[1763331055089,4.7076,3045.5,3044.9,0.4032]
[1763331055280,1.4998,3045.0,3044.9,0.4032]
[1763331055485,1.4998,3045.0,3044.9,16.7242]
[1763331056584,4.7076,3045.5,3044.9,16.7242]
[1763331057386,4.7076,3045.5,3045.0,16.32]
[1763331058285,2.2853,3045.2,3045.1,16.32]
[1763331059890,4.7076,3045.5,3045.1,16.32]
[1763331060189,1.4998,3045.5,3045.4,0.4032]
[1763331061884,3.21046375,3045.9,3045.4,2.44916957]
[1763331062079,1.4998,3045.5,3045.1,5.54833974]
[1763331062283,1.4998,3045.5,3045.2,16.318]
[1763331063495,1.10554712,3045.5,3045.4,0.7975]
[1763331063692,3.21046375,3045.9,3045.4,0.7975]
[1763331063895,0.00266375,3045.9,3045.8,0.7975]
[1763331064192,0.00266375,3045.9,3045.8,17.1155]
[1763331064889,0.00492045,3046.2,3045.8,17.1155]
[1763331065095,0.00492045,3046.2,3046.1,0.7948]
[1763331066094,0.00810639,3046.2,3046.1,0.79888186]
[1763331070489,1.4998,3047.0,3046.1,0.79888186]
[1763331070796,1.4998,3046.5,3046.2,16.313]
[1763331071495,1.50338277,3046.5,3046.2,16.313]
[1763331072583,0.00492045,3046.7,3046.6,0.7948]
[1763331072782,3.2078,3047.4,3047.3,0.7863]
[1763331072984,3.2078,3047.4,3047.3,17.0983]
[1763331073189,1.4998,3048.0,3047.9,0.7863]
[1763331073388,1.10584677,3048.0,3047.7,0.27906645]
[1763331073585,2.2853,3047.9,3047.8,16.311]
[1763331073790,5.4931,3047.9,3047.8,10.271]
[1763331073984,3.2078,3047.9,3047.8,10.271]
[1763331074191,1.1089349,3048.0,3047.8,10.271]
[1763331075591,2.2853,3047.6,3047.5,0.00492045]
[1763331076299,3.2078,3047.9,3047.5,0.00492045]
[1763331076690,0.00308813,3048.0,3047.8,0.6105]
[1763331076895,2.045e-05,3048.2,3048.1,0.6105]
[1763331077091,4.7076,3049.0,3048.1,6.59236485]
[1763331077696,3.2078,3049.4,3048.9,0.6025]
[1763331077900,3.21140968,3049.4,3049.0,16.308]
[1763331079097,3.21140968,3049.4,3049.0,19.5158]